fUST/lending_fUST_20240921
["ID","MTS","AMOUNT","RATE_DAILY","PERIOD"]
[338682921,1726869173776,-500.0,0.00015297,2]
[338682922,1726869173805,-500.0,0.00015297,2]
[338682923,1726869173837,-500.0,0.00015297,2]
[338682924,1726869173867,-500.0,0.00015297,2]
[338682925,1726869173899,-500.0,0.00015297,2]
[338682926,1726869173933,-217.79956,0.00015317,2]
[338682927,1726869173963,-217.79956,0.00015317,2]
[338682928,1726869173987,-941.593629,0.00015317,2]
[338682929,1726869174011,-1148.679793,0.00015317,2]
[338682930,1726869174036,-941.593629,0.00015317,2]
[338682931,1726869174060,-151.0,0.00015317,2]
[338682932,1726869174084,-151.0,0.00015317,2]
[338682933,1726869174108,-151.0,0.00015317,2]
[338682934,1726869174130,-151.0,0.00015317,2]
[338682935,1726869174153,-151.0,0.00015317,2]
[338682936,1726869174179,-151.0,0.00015317,2]
[338682937,1726869174206,-170.478084,0.00015326,2]
[338682938,1726869174229,-170.478084,0.00015326,2]
[338682939,1726869174251,-151.0,0.00015326,2]
[338682940,1726869174274,-150.112233,0.000154,2]
[338682941,1726869174298,-500.0,0.00015439,2]
[338682942,1726869174325,-500.0,0.00015439,2]
[338682943,1726869174620,-230.43318643,0.00015439,2]
[338682944,1726869174656,-500.0,0.0001547,2]
[338682945,1726869174677,-500.45897975,0.0001547,2]
[338682946,1726869174701,-150.112233,0.000155,2]
[338682947,1726869174724,-382.37159413,0.00015522,2]
[338682948,1726869174745,-500.0,0.00015522,2]
[338682949,1726869174766,-500.0,0.00015522,2]
[338682950,1726869174787,-201.49992038,0.00015522,2]
[338682951,1726869174809,-160.09702408,0.00015522,2]
[338682952,1726869174832,-500.0,0.00015541,2]
[338682953,1726869174856,-500.0,0.0001555,2]
[338682954,1726869174879,-887.75,0.0001555,2]
[338682955,1726869174904,-500.0,0.00015559,2]
[338682956,1726869174928,-500.0,0.00015559,2]
[338682957,1726869174952,-679.54,0.00015559,2]
[338682958,1726869174974,-500.0,0.00015559,2]
[338682959,1726869174997,-500.0,0.00015559,2]
[338682960,1726869175020,-607.69056196,0.00015559,2]
[338682961,1726869175043,-500.0,0.00015559,2]
[338682962,1726869175067,-577.42,0.00015559,2]
[338682963,1726869175089,-500.0,0.00015559,2]
[338682964,1726869175112,-500.0,0.00015559,2]
[338682965,1726869175137,-500.0,0.00015559,2]
[338682966,1726869175159,-500.0,0.00015559,2]
[338682967,1726869175182,-500.0,0.00015559,2]
[338682968,1726869175204,-500.0,0.00015559,2]
[338682969,1726869175226,-500.0,0.00015559,2]
[338682970,1726869175249,-500.0,0.00015559,2]
[338682971,1726869175271,-500.0,0.00015559,2]
[338682972,1726869175292,-500.0,0.00015559,2]
[338682973,1726869175315,-500.0,0.00015559,2]
[338682974,1726869175341,-500.0,0.00015559,2]
[338682975,1726869175364,-500.0,0.00015559,2]
[338682976,1726869175387,-1007.27,0.00015559,2]
[338682977,1726869175409,-329.35084229,0.00015559,2]
[338682978,1726869175433,-500.0,0.00015559,2]
[338682979,1726869175457,-500.0,0.00015559,2]
[338682980,1726869175480,-500.0,0.00015559,2]
[338682981,1726869175503,-500.0,0.00015559,2]
[338682982,1726869175526,-500.0,0.00015559,2]
[338682983,1726869175552,-500.0,0.00015559,2]
[338682984,1726869175574,-576.06,0.00015559,2]
[338682985,1726869175596,-500.0,0.00015559,2]
[338682986,1726869175620,-500.0,0.00015559,2]
[338682987,1726869175643,-500.0,0.00015559,2]
[338682988,1726869175669,-500.0,0.00015559,2]
[338682989,1726869175692,-9248.81,0.00015559,2]
[338682990,1726869175716,-500.0,0.00015559,2]
[338682991,1726869175739,-500.0,0.00015559,2]
[338682992,1726869175762,-630.04088527,0.00015559,2]
[338682993,1726869175786,-500.0,0.00015559,2]
[338682994,1726869175809,-500.0,0.0001556,2]
[338682995,1726869175832,-500.0,0.0001556,2]
[338682996,1726869175854,-500.0,0.0001556,2]
[338682997,1726869175876,-500.0,0.0001556,2]
[338682998,1726869175900,-243.999159,0.0001556,2]
[338682999,1726869175924,-243.999159,0.0001556,2]
[338683000,1726869175949,-151.0,0.0001556,2]
[338683001,1726869175972,-151.0,0.0001556,2]
[338683002,1726869175996,-314.37,0.0001556,2]
[338683003,1726869176020,-500.0,0.0001556,2]
[338683004,1726869176046,-500.0,0.0001556,2]
[338683005,1726869176069,-500.0,0.0001556,2]
[338683006,1726869176092,-500.0,0.0001556,2]
[338683007,1726869176115,-151.0,0.0001556,2]
[338683008,1726869176137,-500.0,0.0001556,2]
[338683009,1726869176160,-151.0,0.0001556,2]
[338683010,1726869176184,-500.0,0.0001556,2]
[338683011,1726869176209,-500.0,0.0001556,2]
[338683012,1726869176234,-500.0,0.0001556,2]
[338683013,1726869176257,-500.0,0.0001556,2]
[338683014,1726869176280,-500.0,0.0001556,2]
[338683015,1726869176303,-500.0,0.0001556,2]
[338683016,1726869176325,-500.0,0.0001556,2]
[338683017,1726869176348,-500.0,0.0001556,2]
[338683018,1726869176370,-500.0,0.0001556,2]
[338683019,1726869176391,-500.0,0.0001556,2]
[338683020,1726869176413,-500.0,0.0001556,2]
[338683021,1726869176435,-500.0,0.0001556,2]
[338683022,1726869176457,-500.0,0.0001556,2]
[338683023,1726869176479,-500.0,0.0001556,2]
[338683024,1726869176501,-526.16,0.0001556,2]
[338683025,1726869176523,-500.0,0.0001556,2]
[338683026,1726869176547,-500.0,0.0001556,2]
[338683027,1726869176570,-500.0,0.0001556,2]
[338683028,1726869176592,-597.91,0.0001556,2]
[338683029,1726869176614,-500.0,0.0001556,2]
[338683030,1726869176639,-500.0,0.0001556,2]
[338683031,1726869176661,-500.0,0.0001556,2]
[338683032,1726869176684,-500.0,0.0001556,2]
[338683033,1726869176706,-200.0,0.0001556,2]
[338683034,1726869176728,-500.0,0.00015569,2]
[338683035,1726869176749,-500.0,0.00015571,2]
[338683036,1726869176771,-500.0,0.00015571,2]
[338683037,1726869176791,-500.0,0.00015571,2]
[338683038,1726869176813,-500.0,0.00015571,2]
[338683039,1726869176835,-500.0,0.00015571,2]
[338683040,1726869176856,-500.0,0.00015571,2]
[338683041,1726869176878,-500.0,0.00015571,2]
[338683042,1726869176901,-500.0,0.00015571,2]
[338683043,1726869176924,-500.0,0.00015571,2]
[338683044,1726869176948,-500.0,0.00015571,2]
[338683045,1726869176971,-151.0,0.00015571,2]
[338683046,1726869176992,-151.0,0.00015571,2]
[338683047,1726869177110,-284.21798941,0.00015571,2]
[338683048,1726869177161,-500.0,0.00015571,2]
[338683049,1726869177184,-500.0,0.00015571,2]
[338683050,1726869177206,-500.0,0.00015571,2]
[338683051,1726869177228,-357.201504,0.00015571,2]
[338683052,1726869177250,-357.201504,0.00015571,2]
[338683053,1726869177272,-151.0,0.00015571,2]
[338683054,1726869177293,-500.0,0.00015571,2]
[338683055,1726869177315,-500.0,0.00015571,2]
[338683056,1726869177336,-500.0,0.00015571,2]
[338683057,1726869177357,-500.0,0.00015571,2]
[338683058,1726869177380,-500.0,0.00015571,2]
[338683059,1726869177401,-500.0,0.00015571,2]
[338683060,1726869177423,-500.0,0.00015571,2]
[338683061,1726869177444,-500.0,0.00015571,2]
[338683062,1726869177466,-151.0,0.00015571,2]
[338683063,1726869177487,-500.0,0.00015571,2]
[338683064,1726869177509,-500.0,0.00015571,2]
[338683065,1726869177530,-500.0,0.00015571,2]
[338683066,1726869177553,-500.0,0.00015571,2]
[338683067,1726869177575,-1204.990926,0.00015571,2]
[338683068,1726869177597,-1204.990926,0.00015571,2]
[338683069,1726869177618,-500.0,0.00015571,2]
[338683070,1726869177641,-500.0,0.00015571,2]
[338683071,1726869177664,-500.0,0.00015571,2]
[338683072,1726869177687,-694.4,0.00015571,2]
[338683073,1726869177708,-806.93,0.00015571,2]
[338683074,1726869177728,-151.0,0.00015571,2]
[338683075,1726869177751,-500.0,0.00015571,2]
[338683076,1726869177773,-500.0,0.00015571,2]
[338683077,1726869177795,-500.0,0.00015571,2]
[338683078,1726869177818,-500.0,0.00015571,2]
[338683079,1726869177844,-500.0,0.00015571,2]
[338683080,1726869177867,-151.0,0.00015571,2]
[338683081,1726869177890,-500.0,0.00015571,2]
[338683082,1726869177913,-500.0,0.00015571,2]
[338683083,1726869177937,-584.69,0.00015571,2]
[338683084,1726869177961,-500.0,0.00015571,2]
[338683085,1726869177985,-500.0,0.00015571,2]
[338683086,1726869178009,-514.06724973,0.00015571,2]
[338683087,1726869178033,-500.0,0.00015571,2]
[338683088,1726869178056,-500.0,0.00015571,2]
[338683089,1726869178082,-500.0,0.00015571,2]
[338683090,1726869178105,-657.61,0.00015571,2]
[338683091,1726869178126,-500.0,0.00015571,2]
[338683092,1726869178149,-500.0,0.00015571,2]
[338683093,1726869178171,-500.0,0.00015571,2]
[338683094,1726869178194,-500.0,0.00015571,2]
[338683095,1726869178219,-500.0,0.00015571,2]
[338683096,1726869178241,-500.0,0.00015571,2]
[338683097,1726869178265,-500.0,0.00015571,2]
[338683098,1726869178290,-541.71545866,0.00015571,2]
[338683099,1726869178315,-500.0,0.00015571,2]
[338683100,1726869178339,-500.0,0.00015571,2]
[338683101,1726869178363,-500.0,0.00015571,2]
[338683102,1726869178387,-500.0,0.00015571,2]
[338683103,1726869178409,-500.0,0.00015571,2]
[338683104,1726869178431,-500.0,0.00015571,2]
[338683105,1726869178453,-220.06,0.00015571,2]
[338683106,1726869178475,-500.0,0.00015571,2]
[338683107,1726869178496,-500.0,0.00015571,2]
[338683108,1726869178521,-500.0,0.00015571,2]
[338683109,1726869178549,-151.0,0.00015581,2]
[338683110,1726869178571,-151.0,0.00015581,2]
[338683111,1726869178594,-151.0,0.00015581,2]
[338683112,1726869178617,-151.0,0.00015581,2]
[338683113,1726869178641,-151.0,0.00015581,2]
[338683114,1726869178663,-237.507699,0.00015581,2]
[338683115,1726869178684,-237.507699,0.00015581,2]
[338683116,1726869178706,-151.0,0.00015581,2]
[338683117,1726869178728,-436.062229,0.00015581,2]
[338683118,1726869178750,-500.0,0.00015824,2]
[338683119,1726869178772,-887.75,0.00015824,2]
[338683120,1726869178793,-500.0,0.00015833,2]
[338683121,1726869178815,-679.54,0.00015833,2]
[338683122,1726869178836,-500.0,0.00015833,2]
[338683123,1726869178857,-500.0,0.00015833,2]
[338683125,1726869178879,-500.0,0.00015833,2]
[338683126,1726869178902,-577.42,0.00015833,2]
[338683127,1726869178924,-500.0,0.00015833,2]
[338683128,1726869178946,-500.0,0.00015833,2]
[338683129,1726869178968,-500.0,0.00015833,2]
[338683130,1726869178990,-500.0,0.00015833,2]
[338683131,1726869179012,-500.0,0.00015833,2]
[338683132,1726869179033,-500.0,0.00015833,2]
[338683133,1726869179055,-500.0,0.00015833,2]
[338683135,1726869179077,-500.0,0.00015833,2]
[338683136,1726869179098,-500.0,0.00015833,2]
[338683137,1726869179120,-500.0,0.00015833,2]
[338683138,1726869179142,-500.0,0.00015833,2]
[338683139,1726869179164,-500.0,0.00015833,2]
[338683140,1726869179187,-500.0,0.00015833,2]
[338683141,1726869179210,-1007.27,0.00015833,2]
[338683142,1726869179232,-500.0,0.00015833,2]
[338683143,1726869179255,-500.0,0.00015833,2]
[338683144,1726869179277,-500.0,0.00015833,2]
[338683145,1726869179300,-500.0,0.00015833,2]
[338683146,1726869179322,-500.0,0.00015833,2]
[338683147,1726869179344,-500.0,0.00015833,2]
[338683148,1726869179366,-576.06,0.00015833,2]
[338683149,1726869179388,-500.0,0.00015833,2]
[338683150,1726869179410,-500.0,0.00015833,2]
[338683151,1726869179433,-400.4723907,0.00015833,2]
[338683152,1726869179455,-500.0,0.00015833,2]
[338683153,1726869179478,-9248.81,0.00015833,2]
[338683154,1726869179500,-500.0,0.00015833,2]
[338683155,1726869179522,-500.0,0.00015833,2]
[338683156,1726869179546,-500.0,0.00015833,2]
[338683157,1726869179568,-500.0,0.00015834,2]
[338683158,1726869179590,-500.0,0.00015834,2]
[338683159,1726869179612,-500.0,0.00015834,2]
[338683160,1726869179634,-500.0,0.00015834,2]
[338683161,1726869179656,-500.0,0.00015834,2]
[338683162,1726869179677,-500.0,0.00015834,2]
[338683163,1726869179699,-500.0,0.00015834,2]
[338683164,1726869179721,-500.0,0.00015834,2]
[338683165,1726869179742,-500.0,0.00015834,2]
[338683166,1726869179764,-500.0,0.00015834,2]
[338683167,1726869179786,-500.0,0.00015834,2]
[338683168,1726869179808,-500.0,0.00015834,2]
[338683169,1726869179830,-500.0,0.00015834,2]
[338683170,1726869179852,-500.0,0.00015834,2]
[338683171,1726869179873,-500.0,0.00015834,2]
[338683172,1726869179895,-500.0,0.00015834,2]
[338683173,1726869179917,-152.94,0.00015834,2]
[338683174,1726869179938,-206.72,0.00015834,2]
[338683175,1726869179960,-500.0,0.00015834,2]
[338683176,1726869179981,-500.0,0.00015834,2]
[338683177,1726869180003,-500.0,0.00015834,2]
[338683178,1726869180026,-291.16269423,0.00015834,2]
[338683179,1726869180049,-500.0,0.00015834,2]
[338683180,1726869180262,-526.16,0.00015834,2]
[338683181,1726869180286,-500.0,0.00015834,2]
[338683182,1726869180309,-902.69311,0.00015834,2]
[338683183,1726869180331,-500.0,0.00015834,2]
[338683184,1726869180355,-902.69311,0.00015834,2]
[338683185,1726869180376,-500.0,0.00015834,2]
[338683186,1726869180399,-597.91,0.00015834,2]
[338683187,1726869180424,-500.0,0.00015834,2]
[338683188,1726869180448,-270.20087617,0.00015834,2]
[338683189,1726869180470,-500.0,0.00015834,2]
[338683190,1726869180492,-620.858625,0.00015834,2]
[338683191,1726869180516,-151.0,0.00015834,2]
[338683192,1726869180750,-620.858625,0.00015834,2]
[338683193,1726869180773,-500.0,0.00015834,2]
[338683194,1726869180794,-200.0,0.00015834,2]
[338683195,1726869180816,-420.0,0.00015838,2]
[338683196,1726869180841,-500.0,0.00015842,2]
[338683197,1726869180862,-500.0,0.00015842,2]
[338683198,1726869180883,-151.0,0.00015845,2]
[338683199,1726869180906,-151.0,0.00015845,2]
[338683200,1726869180928,-500.0,0.00015845,2]
[338683201,1726869180951,-500.0,0.00015845,2]
[338683202,1726869180974,-288.65,0.00015845,2]
[338683203,1726869180996,-500.0,0.00015845,2]
[338683204,1726869181018,-500.0,0.00015845,2]
[338683205,1726869181041,-500.0,0.00015845,2]
[338683206,1726869181063,-500.0,0.00015845,2]
[338683207,1726869181087,-500.0,0.00015845,2]
[338683208,1726869181108,-500.0,0.00015845,2]
[338683209,1726869181131,-500.0,0.00015845,2]
[338683210,1726869181153,-500.0,0.00015845,2]
[338683211,1726869181175,-500.0,0.00015845,2]
[338683212,1726869181196,-500.0,0.00015845,2]
[338683213,1726869181217,-500.0,0.00015845,2]
[338683214,1726869181239,-500.0,0.00015845,2]
[338683215,1726869181261,-500.0,0.00015845,2]
[338683216,1726869181282,-496.16725935,0.00015845,2]
[338683219,1726869192877,735.2,0.00010959,2]
[338683221,1726869224355,-160.712305,0.00014286,2]
[338683222,1726869224379,-160.712305,0.00014303,2]
[338683223,1726869224402,-160.712305,0.00014321,2]
[338683224,1726869224424,-160.712305,0.00014339,2]
[338683225,1726869224448,-160.712305,0.00014357,2]
[338683226,1726869224471,-189.01571004,0.00014455,2]
[338683227,1726869224494,-500.0,0.00014455,2]
[338683228,1726869224516,-350.87013673,0.00014455,2]
[338683229,1726869224538,-500.0,0.00014463,2]
[338683230,1726869224564,-500.0,0.00014463,2]
[338683231,1726869224586,-500.0,0.00014463,2]
[338683232,1726869224609,-500.0,0.00014463,2]
[338683233,1726869224635,-500.0,0.00014463,2]
[338683234,1726869224658,-500.0,0.00014463,2]
[338683235,1726869224681,-232.73,0.00014464,2]
[338683236,1726869224704,-500.0,0.00014464,2]
[338683237,1726869224728,-440.14,0.00014464,2]
[338683238,1726869224753,-500.0,0.00014464,2]
[338683239,1726869224776,-500.0,0.00014464,2]
[338683240,1726869224799,-500.0,0.00014464,2]
[338683241,1726869224823,-500.0,0.00014464,2]
[338683242,1726869224846,-500.0,0.00014464,2]
[338683243,1726869224870,-248.5,0.00014464,2]
[338683244,1726869224895,-500.0,0.00014729,2]
[338683245,1726869224917,-595.63781914,0.00014737,2]
[338683246,1726869224941,-139.54480909,0.00014737,2]
[338683251,1726869459666,164.24172,0.00013629,2]
[338683252,1726869459902,164.24172,0.00013747,2]
[338683253,1726869459958,164.24172,0.00013866,2]
[338683254,1726869460143,164.24172,0.00013984,2]
[338683271,1726869475315,24900.0,0.00013403,2]
[338683280,1726869604059,500.0,0.0001,2]
[338683285,1726869604996,500.0,0.0001,2]
[338683288,1726869605375,500.0,0.0001,2]
[338683290,1726869605753,500.0,0.0001,2]
[338683292,1726869606139,472.8013014,0.0001,2]
[338683297,1726869629922,226.597363,0.00013699,2]
[338683300,1726869693405,500.0,0.00011781,2]
[338683329,1726870105995,436.9546387,0.00013395,2]
[338683334,1726870199325,164.24172,0.00013495,2]
[338683335,1726870199533,164.24172,0.00013846,2]
[338683361,1726870237674,226.5973634,0.00013699,2]
[338683362,1726870237746,-164.24172,0.00014198,2]
[338683363,1726870237758,-1642.14939812,0.00014344,2]
[338683364,1726870237770,-1000.0,0.00014354,2]
[338683365,1726870237782,-300.0,0.00014442,2]
[338683366,1726870237793,-300.0,0.00014442,2]
[338683367,1726870237805,-500.0,0.00014443,2]
[338683368,1726870237817,-500.0,0.00014443,2]
[338683369,1726870237830,-500.0,0.00014443,2]
[338683370,1726870237842,-500.0,0.00014443,2]
[338683371,1726870237853,-500.0,0.00014443,2]
[338683372,1726870237864,-500.0,0.00014443,2]
[338683373,1726870237876,-500.0,0.00014443,2]
[338683374,1726870237887,-500.0,0.00014443,2]
[338683375,1726870237900,-500.0,0.00014443,2]
[338683376,1726870237917,-535.14,0.00014443,2]
[338683377,1726870237930,-500.0,0.00014443,2]
[338683378,1726870237947,-1131.26888188,0.00014443,2]
[338683432,1726870241356,-287.38831,0.00014443,2]
[338683433,1726870241465,-183481.39571912,0.00014443,2]
[338683434,1726870241475,-81307.88830342,0.00014444,2]
[338683435,1726870241487,-6966.58680958,0.00014444,2]
[338683436,1726870241499,-1702.799012,0.00014444,2]
[338683437,1726870241511,-8730.71873269,0.00014444,2]
[338683438,1726870241522,-11502.79440981,0.00014444,2]
[338683439,1726870241534,-1333.12899539,0.00014444,2]
[338683440,1726870241546,-17456.50424267,0.00014444,2]
[338683522,1726870245803,-18333.17139171,0.00014444,2]
[338683528,1726870262069,500.0,0.00011781,2]
[338683576,1726870863764,500.0,0.00011781,2]
[338683580,1726871032477,11043.8404056,0.00012,2]
[338683584,1726871108439,150.0,0.00014002,2]
[338683607,1726871318816,18975.04680243,0.0001,2]
[338683608,1726871320103,857.05478744,0.000125,2]
[338683609,1726871320651,814.76581697,0.000129,2]
[338683640,1726871431983,-3611.56349653,0.00014184,2]
[338683641,1726871431997,-864.16890932,0.00014184,2]
[338683660,1726871437944,-2663.54215765,0.00014184,2]
[338683662,1726871437955,-1436.88072339,0.00014321,2]
[338683663,1726871437965,-425.99690108,0.00014334,2]
[338683664,1726871437975,-300.0,0.00014341,2]
[338683665,1726871437984,-300.0,0.00014341,2]
[338683666,1726871437993,-1422.41047771,0.00014342,2]
[338683667,1726871438003,-1531.98886274,0.00014354,2]
[338683668,1726871438012,-150.112233,0.000144,2]
[338683669,1726871438021,-150.112233,0.000144,2]
[338683670,1726871438036,-150.112233,0.000144,2]
[338683671,1726871438046,-150.112233,0.000144,2]
[338683672,1726871438055,-150.112233,0.000144,2]
[338683673,1726871438064,-150.112233,0.000144,2]
[338683674,1726871438073,-150.112233,0.000144,2]
[338683675,1726871438082,-150.112233,0.000144,2]
[338683676,1726871438091,-500.0,0.0001442,2]
[338683677,1726871438101,-500.0,0.0001442,2]
[338683678,1726871438110,-500.0,0.0001442,2]
[338683679,1726871438119,-500.0,0.0001442,2]
[338683680,1726871438129,-500.0,0.0001442,2]
[338683681,1726871438139,-500.0,0.0001442,2]
[338683682,1726871438148,-500.0,0.0001442,2]
[338683683,1726871438157,-500.0,0.0001442,2]
[338683684,1726871438167,-500.0,0.0001442,2]
[338683685,1726871438176,-500.0,0.0001442,2]
[338683686,1726871438185,-500.0,0.00014421,2]
[338683687,1726871438195,-500.0,0.00014421,2]
[338683688,1726871438204,-500.0,0.00014421,2]
[338683689,1726871438214,-500.0,0.00014421,2]
[338683690,1726871438223,-500.0,0.00014421,2]
[338683691,1726871438233,-315.46252277,0.00014421,2]
[338683692,1726871438243,-389.97848068,0.00014421,2]
[338683693,1726871438252,-500.0,0.00014421,2]
[338683694,1726871438261,-500.0,0.00014421,2]
[338683695,1726871438271,-500.0,0.00014421,2]
[338683696,1726871438286,-500.0,0.00014421,2]
[338683697,1726871438295,-500.0,0.00014421,2]
[338683698,1726871438304,-500.0,0.00014421,2]
[338683699,1726871438314,-500.0,0.00014421,2]
[338683700,1726871438323,-500.0,0.00014421,2]
[338683701,1726871438333,-500.0,0.00014421,2]
[338683702,1726871438344,-500.0,0.00014421,2]
[338683703,1726871438355,-500.0,0.00014421,2]
[338683704,1726871438366,-500.0,0.00014421,2]
[338683705,1726871438377,-500.0,0.00014421,2]
[338683706,1726871438387,-500.0,0.00014421,2]
[338683707,1726871438398,-500.0,0.00014421,2]
[338683708,1726871438408,-500.0,0.00014421,2]
[338683709,1726871438420,-500.0,0.00014421,2]
[338683710,1726871438430,-500.0,0.00014421,2]
[338683711,1726871438440,-500.0,0.00014421,2]
[338683712,1726871438451,-500.0,0.00014421,2]
[338683713,1726871438462,-500.0,0.00014421,2]
[338683714,1726871438473,-500.0,0.00014421,2]
[338683715,1726871438483,-500.0,0.00014421,2]
[338683716,1726871438493,-500.0,0.00014421,2]
[338683717,1726871438692,-500.0,0.00014421,2]
[338683718,1726871438703,-500.0,0.00014421,2]
[338683719,1726871438714,-500.0,0.00014421,2]
[338683720,1726871438725,-500.0,0.00014421,2]
[338683721,1726871438735,-500.0,0.00014421,2]
[338683722,1726871438745,-500.0,0.00014421,2]
[338683723,1726871438757,-500.0,0.00014421,2]
[338683724,1726871438767,-500.0,0.00014421,2]
[338683725,1726871438776,-623.7078322,0.00014421,2]
[338683726,1726871438785,-500.0,0.00014421,2]
[338683727,1726871438795,-500.0,0.00014421,2]
[338683728,1726871438804,-500.0,0.00014421,2]
[338683729,1726871438813,-500.0,0.00014421,2]
[338683730,1726871438822,-500.0,0.00014421,2]
[338683731,1726871438832,-500.0,0.00014421,2]
[338683732,1726871438843,-500.0,0.00014421,2]
[338683733,1726871438853,-500.0,0.00014421,2]
[338683734,1726871438862,-512.37078322,0.00014421,2]
[338683735,1726871438872,-500.0,0.00014421,2]
[338683736,1726871438881,-500.0,0.00014421,2]
[338683737,1726871438890,-500.0,0.00014421,2]
[338683738,1726871438899,-500.0,0.00014421,2]
[338683739,1726871438910,-500.0,0.00014421,2]
[338683740,1726871438921,-500.0,0.00014421,2]
[338683741,1726871438931,-500.0,0.00014421,2]
[338683742,1726871438943,-500.0,0.00014421,2]
[338683743,1726871438952,-500.0,0.00014421,2]
[338683744,1726871438962,-500.0,0.00014421,2]
[338683745,1726871438973,-500.0,0.00014421,2]
[338683746,1726871438983,-500.0,0.00014421,2]
[338683747,1726871438993,-500.0,0.00014421,2]
[338683748,1726871439003,-243306.962064,0.00014422,2]
[338683749,1726871439013,-10692.611918,0.00014422,2]
[338683750,1726871439023,-81102.320688,0.00014422,2]
[338683751,1726871439033,-3564.20397268,0.00014422,2]
[338683752,1726871439042,-500.0,0.00014422,2]
[338683753,1726871439051,-152.29479849,0.00014422,2]
[338683754,1726871439061,-344.7255665,0.00014422,2]
[338683755,1726871439070,-500.0,0.00014422,2]
[338683756,1726871439080,-369.73142332,0.00014422,2]
[338683757,1726871439090,-500.0,0.00014422,2]
[338683758,1726871439099,-500.0,0.00014422,2]
[338683759,1726871439109,-500.0,0.00014422,2]
[338683760,1726871439118,-500.0,0.00014422,2]
[338683761,1726871439127,-500.0,0.00014422,2]
[338683762,1726871439137,-177.35545177,0.00014422,2]
[338683763,1726871439146,-500.0,0.00014422,2]
[338683764,1726871439155,-500.0,0.00014422,2]
[338683765,1726871439165,-81102.320688,0.00014423,2]
[338683766,1726871439174,-3564.20397268,0.00014423,2]
[338683767,1726871439183,-21385.2238361,0.00014423,2]
[338683768,1726871439194,-373.67,0.00014431,2]
[338683769,1726871439203,-3420.34,0.00014431,2]
[338683770,1726871439212,-500.0,0.00014431,2]
[338683771,1726871439224,-500.0,0.00014431,2]
[338683772,1726871439233,-500.0,0.00014431,2]
[338683773,1726871439242,-500.0,0.00014431,2]
[338683774,1726871439252,-500.0,0.00014431,2]
[338683775,1726871439261,-500.0,0.00014431,2]
[338683776,1726871439270,-500.0,0.00014431,2]
[338683777,1726871439280,-500.0,0.00014431,2]
[338683778,1726871439290,-500.0,0.00014431,2]
[338683779,1726871439299,-500.0,0.00014431,2]
[338683780,1726871439309,-500.0,0.00014431,2]
[338683781,1726871439319,-500.0,0.00014431,2]
[338683782,1726871439328,-500.0,0.00014431,2]
[338683783,1726871439337,-500.0,0.00014431,2]
[338683784,1726871439348,-500.0,0.00014431,2]
[338683785,1726871439359,-500.0,0.00014431,2]
[338683786,1726871439368,-256.43,0.00014431,2]
[338683787,1726871439378,-500.0,0.00014431,2]